[Event "Titled Tuesday Blitz July 11 Late 2023"]
[White "Palencia Morales, Wilson Guillermo"]
[Black "Villuendas Valero, Adrian"]
[WhiteFideId "4401859"]
[BlackFideId "2262460"]
[WhiteElo "2526"]
[BlackElo "2372"]
[Result "1-0"]
[Round "6"]
[TimeControl "180+2"]
[Date "2023.07.11"]
[WhiteClock "0:00:08"]
[BlackClock "0:00:08"]
[Board "100"]

1. e4 {[%clk 0:03:00]}  c5 {[%clk 0:02:59]} 2. Nf3 {[%clk 0:03:01]}  e6 {[%clk 0:02:59]} 3. d4 {[%clk 0:03:02]}  cxd4 {[%clk 0:03:00]} 4. Nxd4 {[%clk 0:03:02]}  Nc6 {[%clk 0:03:00]} 5. Nb5 {[%clk 0:03:02]}  d6 {[%clk 0:02:57]} 6. c4 {[%clk 0:03:03]}  Nf6 {[%clk 0:02:56]} 7. N1c3 {[%clk 0:03:03]}  a6 {[%clk 0:02:56]} 8. Na3 {[%clk 0:03:03]}  Be7 {[%clk 0:02:57]} 9. Be2 {[%clk 0:03:04]}  O-O {[%clk 0:02:52]} 10. O-O {[%clk 0:03:04]}  b6 {[%clk 0:02:52]} 11. Be3 {[%clk 0:03:04]}  Ne5 {[%clk 0:02:53]} 12. f4 {[%clk 0:02:56]}  Ned7 {[%clk 0:02:53]} 13. g4 {[%clk 0:02:42]}  Bb7 {[%clk 0:02:50]} 14. Bf3 {[%clk 0:02:41]}  h6 {[%clk 0:02:49]} 15. Qe2 {[%clk 0:02:20]}  Qc7 {[%clk 0:02:19]} 16. Rac1 {[%clk 0:02:10]}  Nc5 {[%clk 0:02:16]} 17. Bf2 {[%clk 0:01:56]}  Rac8 {[%clk 0:01:34]} 18. h4 {[%clk 0:01:48]}  Nh7 {[%clk 0:01:23]} 19. g5 {[%clk 0:01:46]}  hxg5 {[%clk 0:01:23]} 20. hxg5 {[%clk 0:01:47]}  e5 {[%clk 0:01:23]} 21. Nd5 {[%clk 0:01:32]}  Bxd5 {[%clk 0:01:17]} 22. cxd5 {[%clk 0:01:33]}  Qd8 {[%clk 0:01:11]} 23. Bg4 {[%clk 0:01:25]}  Rc7 {[%clk 0:01:04]} 24. fxe5 {[%clk 0:00:40]}  Bxg5 {[%clk 0:00:58]} 25. Rc3 {[%clk 0:00:31]}  dxe5 {[%clk 0:00:52]} 26. Nc4 {[%clk 0:00:26]}  Bf4 {[%clk 0:00:49]} 27. d6 {[%clk 0:00:19]}  Rb7 {[%clk 0:00:46]} 28. b4 {[%clk 0:00:17]}  Nxe4 {[%clk 0:00:41]} 29. Qxe4 {[%clk 0:00:17]}  Qg5 {[%clk 0:00:39]} 30. Qg2 {[%clk 0:00:16]}  Nf6 {[%clk 0:00:29]} 31. Qxb7 {[%clk 0:00:14]}  Nxg4 {[%clk 0:00:28]} 32. Qg2 {[%clk 0:00:13]}  Qh5 {[%clk 0:00:26]} 33. Rh3 {[%clk 0:00:13]}  Qg5 {[%clk 0:00:22]} 34. Rh4 {[%clk 0:00:13]}  f5 {[%clk 0:00:22]} 35. Rd1 {[%clk 0:00:10]}  Nxf2 {[%clk 0:00:19]} 36. Qxg5 {[%clk 0:00:10]}  Bxg5 {[%clk 0:00:20]} 37. Rh5 {[%clk 0:00:10]}  Ne4 {[%clk 0:00:19]} 38. Nxe5 {[%clk 0:00:09]}  Be3+ {[%clk 0:00:18]} 39. Kg2 {[%clk 0:00:08]}  f4 {[%clk 0:00:16]} 40. Kf3 {[%clk 0:00:08]}  Nd2+ {[%clk 0:00:14]} 41. Ke2 {[%clk 0:00:07]}  Rd8 {[%clk 0:00:13]} 42. Rdh1 {[%clk 0:00:07]}  g6 {[%clk 0:00:07]} 43. Rh8+ {[%clk 0:00:07]}  Kg7 {[%clk 0:00:08]} 44. Rxd8 {[%clk 0:00:07]}  Kf6 {[%clk 0:00:08]} 45. Ng4+ {[%clk 0:00:06]}  Kf5 {[%clk 0:00:08]} 46. Nxe3+ {[%clk 0:00:07]}  fxe3 {[%clk 0:00:09]} 47. Kxe3 {[%clk 0:00:08]}  Nc4+ {[%clk 0:00:08]} 48. Kd4 {[%clk 0:00:08]}  Ne5 {[%clk 0:00:08]} 49. Rf1+ {[%clk 0:00:07]}  Kg4 {[%clk 0:00:09]} 50. Kxe5 {[%clk 0:00:07]}  a5 {[%clk 0:00:09]} 51. Rg8 {[%clk 0:00:08]}  Kg5 {[%clk 0:00:08]} 52. d7 {[%clk 0:00:08]}  Kh6 {[%clk 0:00:09]} 53. d8=Q {[%clk 0:00:09]}  axb4 {[%clk 0:00:08]} 54. Qh4# {[%clk 0:00:08]} 1-0


[Site "https://www.chess.com"]

[Event "Titled Tuesday Blitz July 11 Late 2023"]
[White "Novikov, Evgenij"]
[Black "The_Straightforward_Rook"]
[WhiteFideId "4125380"]
[WhiteElo "2485"]
[BlackElo "2325"]
[Result "1-0"]
[Round "6"]
[TimeControl "180+2"]
[Date "2023.07.11"]
[WhiteClock "0:01:18"]
[BlackClock "0:00:26"]
[Board "106"]

1. e4 {[%clk 0:02:58]}  e5 {[%clk 0:02:56]} 2. f4 {[%clk 0:02:58]}  exf4 {[%clk 0:02:54]} 3. Nf3 {[%clk 0:02:58]}  Nf6 {[%clk 0:02:55]} 4. Nc3 {[%clk 0:02:57]}  d5 {[%clk 0:02:54]} 5. exd5 {[%clk 0:02:57]}  Nxd5 {[%clk 0:02:53]} 6. Bc4 {[%clk 0:02:57]}  c6 {[%clk 0:02:39]} 7. O-O {[%clk 0:02:55]}  Bd6 {[%clk 0:02:38]} 8. d4 {[%clk 0:02:46]}  Nxc3 {[%clk 0:02:34]} 9. bxc3 {[%clk 0:02:46]}  O-O {[%clk 0:02:34]} 10. Rb1 {[%clk 0:02:37]}  b5 {[%clk 0:02:33]} 11. Bd3 {[%clk 0:02:37]}  Be6 {[%clk 0:02:30]} 12. Ne5 {[%clk 0:02:24]}  Bxe5 {[%clk 0:02:24]} 13. dxe5 {[%clk 0:02:25]}  Bxa2 {[%clk 0:02:24]} 14. Rb4 {[%clk 0:02:11]}  Nd7 {[%clk 0:02:16]} 15. Bxf4 {[%clk 0:02:03]}  Nc5 {[%clk 0:02:06]} 16. Rd4 {[%clk 0:02:00]}  Bd5 {[%clk 0:02:03]} 17. Bxh7+ {[%clk 0:01:49]}  Kxh7 {[%clk 0:02:02]} 18. Qh5+ {[%clk 0:01:50]}  Kg8 {[%clk 0:02:01]} 19. Bg5 {[%clk 0:01:51]}  f6 {[%clk 0:01:45]} 20. exf6 {[%clk 0:01:50]}  Ne4 {[%clk 0:01:32]} 21. Rxe4 {[%clk 0:01:35]}  Qb6+ {[%clk 0:01:01]} 22. Be3 {[%clk 0:01:32]}  Qc7 {[%clk 0:00:26]} 23. Re7 {[%clk 0:01:18]} 1-0


[Site "https://www.chess.com"]

[Event "Titled Tuesday Blitz July 11 Late 2023"]
[White "Kostiukov, Alexandr"]
[Black "Ladan, Nicholas"]
[WhiteFideId "14108100"]
[BlackFideId "30918855"]
[WhiteElo "2320"]
[BlackElo "2484"]
[Result "1-0"]
[Round "6"]
[TimeControl "180+2"]
[Date "2023.07.11"]
[WhiteClock "0:02:22"]
[BlackClock "0:01:37"]
[Board "107"]

1. g3 {[%clk 0:02:52]}  d5 {[%clk 0:02:58]} 2. Bg2 {[%clk 0:02:49]}  Bg4 {[%clk 0:02:58]} 3. c4 {[%clk 0:02:48]}  e6 {[%clk 0:02:58]} 4. cxd5 {[%clk 0:02:48]}  exd5 {[%clk 0:02:57]} 5. Qb3 {[%clk 0:02:48]}  Qe7 {[%clk 0:02:45]} 6. Qxb7 {[%clk 0:02:44]}  Qc5 {[%clk 0:02:40]} 7. Nc3 {[%clk 0:02:37]}  Qc6 {[%clk 0:02:38]} 8. Bxd5 {[%clk 0:02:33]}  Qxb7 {[%clk 0:02:12]} 9. Bxb7 {[%clk 0:02:33]}  c6 {[%clk 0:02:13]} 10. Bxa8 {[%clk 0:02:32]}  Kd7 {[%clk 0:02:11]} 11. d4 {[%clk 0:02:30]}  Bd6 {[%clk 0:02:09]} 12. d5 {[%clk 0:02:30]}  Nf6 {[%clk 0:01:58]} 13. Bxc6+ {[%clk 0:02:28]}  Nxc6 {[%clk 0:01:58]} 14. dxc6+ {[%clk 0:02:29]}  Kxc6 {[%clk 0:01:59]} 15. Be3 {[%clk 0:02:26]}  Rb8 {[%clk 0:01:55]} 16. O-O-O {[%clk 0:02:22]}  a5 {[%clk 0:01:43]} 17. Rxd6+ {[%clk 0:02:21]}  Kxd6 {[%clk 0:01:37]} 18. Bf4+ {[%clk 0:02:22]} 1-0


[Site "https://www.chess.com"]

[Event "Titled Tuesday Blitz July 11 Late 2023"]
[White "Karas, Marek"]
[Black "Al Mukhaini, Shima"]
[WhiteFideId "14928558"]
[BlackFideId "22005854"]
[WhiteElo "2471"]
[BlackElo "2316"]
[Result "0-1"]
[Round "6"]
[TimeControl "180+2"]
[Date "2023.07.11"]
[WhiteClock "0:00:00"]
[BlackClock "0:00:19"]
[Board "108"]

1. h4 {[%clk 0:03:00]}  d5 {[%clk 0:02:57]} 2. d4 {[%clk 0:03:00]}  c5 {[%clk 0:02:55]} 3. dxc5 {[%clk 0:02:57]}  e6 {[%clk 0:02:55]} 4. e4 {[%clk 0:02:53]}  Bxc5 {[%clk 0:02:53]} 5. exd5 {[%clk 0:02:51]}  Nf6 {[%clk 0:02:51]} 6. Bg5 {[%clk 0:02:48]}  Qb6 {[%clk 0:02:50]} 7. Nh3 {[%clk 0:02:35]}  Ne4 {[%clk 0:02:45]} 8. Bd3 {[%clk 0:02:27]}  Nxf2 {[%clk 0:02:42]} 9. Nxf2 {[%clk 0:02:26]}  Bxf2+ {[%clk 0:02:39]} 10. Kf1 {[%clk 0:02:26]}  Qxb2 {[%clk 0:02:26]} 11. Kxf2 {[%clk 0:02:01]}  Qxa1 {[%clk 0:02:26]} 12. Bb5+ {[%clk 0:02:00]}  Bd7 {[%clk 0:02:21]} 13. dxe6 {[%clk 0:02:00]}  fxe6 {[%clk 0:02:19]} 14. Qd6 {[%clk 0:01:54]}  Rf8+ {[%clk 0:02:02]} 15. Kg3 {[%clk 0:01:44]}  Rf6 {[%clk 0:01:56]} 16. Re1 {[%clk 0:01:17]}  Bxb5 {[%clk 0:01:04]} 17. Bxf6 {[%clk 0:01:02]}  gxf6 {[%clk 0:00:55]} 18. Qxe6+ {[%clk 0:00:48]}  Kd8 {[%clk 0:00:46]} 19. Qe7+ {[%clk 0:00:27]}  Kc8 {[%clk 0:00:45]} 20. Qf8+ {[%clk 0:00:25]}  Kc7 {[%clk 0:00:44]} 21. Qc5+ {[%clk 0:00:17]}  Bc6 {[%clk 0:00:43]} 22. Re7+ {[%clk 0:00:13]}  Nd7 {[%clk 0:00:42]} 23. Nc3 {[%clk 0:00:14]}  Kd8 {[%clk 0:00:20]} 24. Rxh7 {[%clk 0:00:00]}  Nxc5 {[%clk 0:00:19]} 0-1


[Site "https://www.chess.com"]

[Event "Titled Tuesday Blitz July 11 Late 2023"]
[White "Luong Phuong Hanh"]
[Black "Da Matta, Eduardo Cesar"]
[WhiteFideId "12401013"]
[BlackFideId "2193108"]
[WhiteElo "2468"]
[BlackElo "2314"]
[Result "0-1"]
[Round "6"]
[TimeControl "180+2"]
[Date "2023.07.11"]
[WhiteClock "0:02:04"]
[BlackClock "0:01:33"]
[Board "109"]

1. d4 {[%clk 0:02:59]}  d5 {[%clk 0:02:55]} 2. c4 {[%clk 0:02:59]}  c6 {[%clk 0:02:55]} 3. Nf3 {[%clk 0:02:58]}  Nf6 {[%clk 0:02:55]} 4. Qc2 {[%clk 0:02:58]}  e6 {[%clk 0:02:52]} 5. g3 {[%clk 0:02:49]}  Nbd7 {[%clk 0:02:52]} 6. Bg2 {[%clk 0:02:49]}  Bd6 {[%clk 0:02:46]} 7. O-O {[%clk 0:02:49]}  O-O {[%clk 0:02:46]} 8. Nbd2 {[%clk 0:02:49]}  b6 {[%clk 0:02:45]} 9. e4 {[%clk 0:02:49]}  dxe4 {[%clk 0:02:44]} 10. Nxe4 {[%clk 0:02:50]}  Be7 {[%clk 0:02:42]} 11. Rd1 {[%clk 0:02:50]}  Bb7 {[%clk 0:02:42]} 12. Ne5 {[%clk 0:02:39]}  Nxe4 {[%clk 0:02:39]} 13. Bxe4 {[%clk 0:02:37]}  Qc8 {[%clk 0:02:28]} 14. Bxh7+ {[%clk 0:02:36]}  Kh8 {[%clk 0:02:28]} 15. Be4 {[%clk 0:02:33]}  c5 {[%clk 0:02:26]} 16. Nxd7 {[%clk 0:02:32]}  Bxe4 {[%clk 0:02:18]} 17. Qxe4 {[%clk 0:02:31]}  Qxd7 {[%clk 0:02:19]} 18. Bf4 {[%clk 0:02:31]}  cxd4 {[%clk 0:02:19]} 19. Rxd4 {[%clk 0:02:31]}  Qa4 {[%clk 0:02:16]} 20. b3 {[%clk 0:02:30]}  Qb4 {[%clk 0:02:11]} 21. Bd6 {[%clk 0:02:28]}  Bxd6 {[%clk 0:02:10]} 22. a3 {[%clk 0:02:17]}  Qc5 {[%clk 0:01:58]} 23. b4 {[%clk 0:02:17]}  Qe5 {[%clk 0:01:58]} 24. Qd3 {[%clk 0:02:17]}  Be7 {[%clk 0:01:55]} 25. Rd1 {[%clk 0:02:17]}  Rad8 {[%clk 0:01:50]} 26. Qc3 {[%clk 0:02:11]}  Rxd4 {[%clk 0:01:34]} 27. Rxd4 {[%clk 0:02:04]}  Bf6 {[%clk 0:01:33]} 0-1


[Site "https://www.chess.com"]

[Event "Titled Tuesday Blitz July 11 Late 2023"]
[White "OllieAr"]
[Black "Estrada Nieto, Julian"]
[BlackFideId "5101018"]
[WhiteElo "2307"]
[BlackElo "2465"]
[Result "1-0"]
[Round "6"]
[TimeControl "180+2"]
[Date "2023.07.11"]
[WhiteClock "0:00:55"]
[BlackClock "0:00:30"]
[Board "110"]

1. Nf3 {[%clk 0:03:00]}  Nf6 {[%clk 0:02:58]} 2. c4 {[%clk 0:03:00]}  e6 {[%clk 0:02:53]} 3. Nc3 {[%clk 0:03:01]}  d5 {[%clk 0:02:53]} 4. d4 {[%clk 0:03:00]}  a6 {[%clk 0:02:48]} 5. cxd5 {[%clk 0:02:58]}  exd5 {[%clk 0:02:48]} 6. Bg5 {[%clk 0:02:58]}  Be7 {[%clk 0:02:48]} 7. e3 {[%clk 0:02:58]}  O-O {[%clk 0:02:46]} 8. Bd3 {[%clk 0:02:58]}  Nbd7 {[%clk 0:02:46]} 9. O-O {[%clk 0:02:58]}  c6 {[%clk 0:02:46]} 10. a3 {[%clk 0:02:52]}  a5 {[%clk 0:02:43]} 11. Rb1 {[%clk 0:02:52]}  Re8 {[%clk 0:02:43]} 12. b4 {[%clk 0:02:48]}  axb4 {[%clk 0:02:43]} 13. axb4 {[%clk 0:02:49]}  b5 {[%clk 0:02:42]} 14. Ne5 {[%clk 0:02:46]}  Nxe5 {[%clk 0:02:40]} 15. dxe5 {[%clk 0:02:47]}  Nd7 {[%clk 0:02:39]} 16. Bxe7 {[%clk 0:02:32]}  Qxe7 {[%clk 0:02:39]} 17. f4 {[%clk 0:02:32]}  f6 {[%clk 0:02:30]} 18. Bxb5 {[%clk 0:02:07]}  Ra3 {[%clk 0:02:01]} 19. Bxc6 {[%clk 0:01:33]}  Rxc3 {[%clk 0:01:58]} 20. Qxd5+ {[%clk 0:01:33]}  Kh8 {[%clk 0:01:49]} 21. e6 {[%clk 0:01:23]}  Nb6 {[%clk 0:01:41]} 22. Qb5 {[%clk 0:01:19]}  Ba6 {[%clk 0:01:14]} 23. Qxb6 {[%clk 0:01:15]}  Bxf1 {[%clk 0:01:11]} 24. Rxf1 {[%clk 0:01:16]}  Qd8 {[%clk 0:00:47]} 25. Qxd8 {[%clk 0:01:08]}  Rxd8 {[%clk 0:00:46]} 26. e7 {[%clk 0:01:08]}  Rc8 {[%clk 0:00:47]} 27. e8=Q+ {[%clk 0:01:08]}  Rxe8 {[%clk 0:00:47]} 28. Bxe8 {[%clk 0:01:09]}  Rxe3 {[%clk 0:00:48]} 29. Bc6 {[%clk 0:01:08]}  Rb3 {[%clk 0:00:47]} 30. b5 {[%clk 0:01:08]}  g6 {[%clk 0:00:46]} 31. Rd1 {[%clk 0:01:05]}  Kg7 {[%clk 0:00:46]} 32. Rd7+ {[%clk 0:01:05]}  Kh6 {[%clk 0:00:47]} 33. Rb7 {[%clk 0:01:01]}  f5 {[%clk 0:00:45]} 34. Rb8 {[%clk 0:00:57]}  Kh5 {[%clk 0:00:44]} 35. b6 {[%clk 0:00:56]}  Kg4 {[%clk 0:00:44]} 36. b7 {[%clk 0:00:56]}  Kxf4 {[%clk 0:00:41]} 37. Re8 {[%clk 0:00:55]}  Rb1+ {[%clk 0:00:37]} 38. Kf2 {[%clk 0:00:55]}  Rb2+ {[%clk 0:00:30]} 39. Ke1 {[%clk 0:00:55]} 1-0


[Site "https://www.chess.com"]

[Event "Titled Tuesday Blitz July 11 Late 2023"]
[White "Rubio Tent, Francisco"]
[Black "Antonio, Jorge Carlos"]
[WhiteFideId "2238233"]
[BlackFideId "113190"]
[WhiteElo "2459"]
[BlackElo "2300"]
[Result "1-0"]
[Round "6"]
[TimeControl "180+2"]
[Date "2023.07.11"]
[WhiteClock "0:00:07"]
[BlackClock "0:00:00"]
[Board "111"]

1. d4 {[%clk 0:03:00]}  d5 {[%clk 0:02:12]} 2. Bf4 {[%clk 0:03:00]}  c6 {[%clk 0:02:13]} 3. e3 {[%clk 0:02:59]}  Nf6 {[%clk 0:02:13]} 4. c3 {[%clk 0:03:00]}  g6 {[%clk 0:02:13]} 5. Nf3 {[%clk 0:03:00]}  Bg7 {[%clk 0:02:14]} 6. Nbd2 {[%clk 0:03:01]}  O-O {[%clk 0:02:14]} 7. h3 {[%clk 0:03:01]}  h5 {[%clk 0:02:13]} 8. Bd3 {[%clk 0:03:01]}  Nbd7 {[%clk 0:02:11]} 9. Ne5 {[%clk 0:03:01]}  Re8 {[%clk 0:02:11]} 10. Ndf3 {[%clk 0:02:56]}  Nxe5 {[%clk 0:02:10]} 11. Nxe5 {[%clk 0:02:57]}  Nd7 {[%clk 0:02:09]} 12. g4 {[%clk 0:02:42]}  Nxe5 {[%clk 0:02:04]} 13. dxe5 {[%clk 0:02:43]}  h4 {[%clk 0:01:59]} 14. Qf3 {[%clk 0:02:32]}  Qb6 {[%clk 0:01:52]} 15. O-O-O {[%clk 0:02:25]}  e6 {[%clk 0:01:42]} 16. g5 {[%clk 0:02:04]}  a5 {[%clk 0:01:40]} 17. Qg4 {[%clk 0:01:59]}  a4 {[%clk 0:01:40]} 18. a3 {[%clk 0:01:55]}  c5 {[%clk 0:01:35]} 19. Qxh4 {[%clk 0:01:52]}  c4 {[%clk 0:01:35]} 20. Bb1 {[%clk 0:01:46]}  Qc7 {[%clk 0:01:28]} 21. Qg3 {[%clk 0:01:44]}  b5 {[%clk 0:01:26]} 22. Rd2 {[%clk 0:01:29]}  b4 {[%clk 0:01:25]} 23. cxb4 {[%clk 0:01:29]}  c3 {[%clk 0:01:23]} 24. Rc2 {[%clk 0:01:28]}  cxb2+ {[%clk 0:01:21]} 25. Kxb2 {[%clk 0:01:28]}  Qe7 {[%clk 0:01:14]} 26. Rhc1 {[%clk 0:01:22]}  Bd7 {[%clk 0:01:08]} 27. Rc7 {[%clk 0:01:19]}  Rec8 {[%clk 0:01:07]} 28. Qg1 {[%clk 0:01:08]}  Rxc7 {[%clk 0:01:01]} 29. Rxc7 {[%clk 0:01:09]}  Qd8 {[%clk 0:01:01]} 30. Qc1 {[%clk 0:01:06]}  Bb5 {[%clk 0:01:01]} 31. Qc5 {[%clk 0:00:36]}  Bc4 {[%clk 0:00:57]} 32. Bc2 {[%clk 0:00:20]}  Bf8 {[%clk 0:00:52]} 33. Qb6 {[%clk 0:00:19]}  Rb8 {[%clk 0:00:50]} 34. Qa7 {[%clk 0:00:20]}  Qe8 {[%clk 0:00:45]} 35. h4 {[%clk 0:00:17]}  Ra8 {[%clk 0:00:39]} 36. Qb7 {[%clk 0:00:17]}  Rb8 {[%clk 0:00:39]} 37. Qc6 {[%clk 0:00:17]}  Qd8 {[%clk 0:00:28]} 38. Qd7 {[%clk 0:00:17]}  Qxd7 {[%clk 0:00:26]} 39. Rxd7 {[%clk 0:00:18]}  Bb5 {[%clk 0:00:23]} 40. Rc7 {[%clk 0:00:18]}  Bc4 {[%clk 0:00:20]} 41. Bxa4 {[%clk 0:00:13]}  Bd3 {[%clk 0:00:10]} 42. Bc6 {[%clk 0:00:11]}  Rb6 {[%clk 0:00:05]} 43. Kc3 {[%clk 0:00:07]}  Bc4 {[%clk 0:00:00]} 44. Be8 {[%clk 0:00:07]} 1-0


[Site "https://www.chess.com"]

[Event "Titled Tuesday Blitz July 11 Late 2023"]
[White "Ardila, Oscar Humberto"]
[Black "Nunez V, Gustavo Eduardo"]
[WhiteFideId "4404742"]
[BlackFideId "4403690"]
[WhiteElo "2285"]
[BlackElo "2442"]
[Result "0-1"]
[Round "6"]
[TimeControl "180+2"]
[Date "2023.07.11"]
[WhiteClock "0:01:24"]
[BlackClock "0:01:48"]
[Board "114"]

1. d4 {[%clk 0:02:54]}  Nf6 {[%clk 0:02:59]} 2. c4 {[%clk 0:02:54]}  g6 {[%clk 0:02:59]} 3. Nc3 {[%clk 0:02:54]}  Bg7 {[%clk 0:02:59]} 4. Nf3 {[%clk 0:02:55]}  O-O {[%clk 0:02:59]} 5. e4 {[%clk 0:02:55]}  d6 {[%clk 0:02:59]} 6. Be2 {[%clk 0:02:55]}  e5 {[%clk 0:02:59]} 7. d5 {[%clk 0:02:55]}  Nbd7 {[%clk 0:02:58]} 8. O-O {[%clk 0:02:55]}  Nc5 {[%clk 0:02:59]} 9. Qc2 {[%clk 0:02:55]}  a5 {[%clk 0:03:00]} 10. Bg5 {[%clk 0:02:55]}  h6 {[%clk 0:02:59]} 11. Bxf6 {[%clk 0:02:55]}  Bxf6 {[%clk 0:02:59]} 12. b3 {[%clk 0:02:56]}  Bg7 {[%clk 0:02:55]} 13. a3 {[%clk 0:02:56]}  f5 {[%clk 0:02:56]} 14. Nd2 {[%clk 0:02:56]}  f4 {[%clk 0:02:49]} 15. Qd1 {[%clk 0:02:56]}  h5 {[%clk 0:02:42]} 16. b4 {[%clk 0:02:54]}  Nd7 {[%clk 0:02:39]} 17. c5 {[%clk 0:02:48]}  axb4 {[%clk 0:02:34]} 18. axb4 {[%clk 0:02:48]}  Rxa1 {[%clk 0:02:35]} 19. Qxa1 {[%clk 0:02:48]}  dxc5 {[%clk 0:02:36]} 20. bxc5 {[%clk 0:02:42]}  Nxc5 {[%clk 0:02:37]} 21. Qa7 {[%clk 0:02:34]}  Qe7 {[%clk 0:02:26]} 22. Bc4 {[%clk 0:02:24]}  Kh7 {[%clk 0:02:25]} 23. Nb5 {[%clk 0:02:16]}  g5 {[%clk 0:02:13]} 24. Rc1 {[%clk 0:01:48]}  g4 {[%clk 0:02:07]} 25. Nb3 {[%clk 0:01:47]}  Nxe4 {[%clk 0:01:47]} 26. Bd3 {[%clk 0:01:47]}  Bf5 {[%clk 0:01:48]} 27. Rxc7 {[%clk 0:01:46]}  Qb4 {[%clk 0:01:47]} 28. Qxb7 {[%clk 0:01:25]}  Qe1+ {[%clk 0:01:46]} 29. Bf1 {[%clk 0:01:26]}  Qxf2+ {[%clk 0:01:47]} 30. Kh1 {[%clk 0:01:24]}  Qxf1# {[%clk 0:01:48]} 0-1


[Site "https://www.chess.com"]

[Event "Titled Tuesday Blitz July 11 Late 2023"]
[White "Rios Escobar, Adan"]
[Black "Marchesich, Giovanni"]
[WhiteFideId "3403645"]
[BlackFideId "2824790"]
[WhiteElo "2438"]
[BlackElo "2276"]
[Result "0-1"]
[Round "6"]
[TimeControl "180+2"]
[Date "2023.07.11"]
[WhiteClock "0:00:06"]
[BlackClock "0:00:08"]
[Board "116"]

1. d4 {[%clk 0:02:55]}  Nf6 {[%clk 0:02:59]} 2. g3 {[%clk 0:02:55]}  c5 {[%clk 0:02:59]} 3. d5 {[%clk 0:02:54]}  b5 {[%clk 0:02:59]} 4. a4 {[%clk 0:02:55]}  b4 {[%clk 0:02:59]} 5. c4 {[%clk 0:02:56]}  bxc3 {[%clk 0:02:59]} 6. Nxc3 {[%clk 0:02:55]}  d6 {[%clk 0:03:00]} 7. e4 {[%clk 0:02:56]}  g6 {[%clk 0:02:54]} 8. Bb5+ {[%clk 0:02:56]}  Nbd7 {[%clk 0:02:53]} 9. f4 {[%clk 0:02:46]}  Bg7 {[%clk 0:02:33]} 10. e5 {[%clk 0:02:42]}  Ng8 {[%clk 0:02:06]} 11. e6 {[%clk 0:02:38]}  fxe6 {[%clk 0:02:05]} 12. dxe6 {[%clk 0:02:38]}  Bb7 {[%clk 0:02:06]} 13. Nf3 {[%clk 0:02:30]}  Nf6 {[%clk 0:02:02]} 14. exd7+ {[%clk 0:02:18]}  Kf7 {[%clk 0:02:01]} 15. Qb3+ {[%clk 0:02:12]}  d5 {[%clk 0:01:47]} 16. Ng5+ {[%clk 0:02:08]}  Kg8 {[%clk 0:01:47]} 17. O-O {[%clk 0:01:43]}  h6 {[%clk 0:01:47]} 18. Ne6 {[%clk 0:01:32]}  Qb6 {[%clk 0:01:47]} 19. a5 {[%clk 0:01:09]}  Qxe6 {[%clk 0:01:43]} 20. a6 {[%clk 0:01:09]}  Bc6 {[%clk 0:01:41]} 21. Bxc6 {[%clk 0:01:01]}  Qxc6 {[%clk 0:01:41]} 22. Qb5 {[%clk 0:00:47]}  Qxb5 {[%clk 0:01:34]} 23. Nxb5 {[%clk 0:00:47]}  Nxd7 {[%clk 0:01:34]} 24. Nc7 {[%clk 0:00:47]}  Rb8 {[%clk 0:01:20]} 25. Nxd5 {[%clk 0:00:47]}  Bxb2 {[%clk 0:01:19]} 26. Bxb2 {[%clk 0:00:44]}  Rxb2 {[%clk 0:01:20]} 27. Nxe7+ {[%clk 0:00:44]}  Kf7 {[%clk 0:01:20]} 28. Nc6 {[%clk 0:00:43]}  Rc8 {[%clk 0:00:59]} 29. Ne5+ {[%clk 0:00:43]}  Nxe5 {[%clk 0:00:58]} 30. fxe5+ {[%clk 0:00:44]}  Ke6 {[%clk 0:00:59]} 31. Rf6+ {[%clk 0:00:42]}  Kxe5 {[%clk 0:00:59]} 32. Rxg6 {[%clk 0:00:43]}  c4 {[%clk 0:00:57]} 33. Rg7 {[%clk 0:00:33]}  c3 {[%clk 0:00:55]} 34. Rxa7 {[%clk 0:00:33]}  c2 {[%clk 0:00:55]} 35. Re7+ {[%clk 0:00:32]}  Kd4 {[%clk 0:00:52]} 36. Ree1 {[%clk 0:00:32]}  Kd3 {[%clk 0:00:51]} 37. a7 {[%clk 0:00:30]}  Kd2 {[%clk 0:00:50]} 38. Rf1 {[%clk 0:00:28]}  Ra8 {[%clk 0:00:16]} 39. Kg2 {[%clk 0:00:16]}  Rb7 {[%clk 0:00:15]} 40. Rf2+ {[%clk 0:00:15]}  Kc3 {[%clk 0:00:15]} 41. Ra3+ {[%clk 0:00:14]}  Kb2 {[%clk 0:00:15]} 42. Ra5 {[%clk 0:00:12]}  Kb1 {[%clk 0:00:05]} 43. Rc5 {[%clk 0:00:02]}  c1=Q {[%clk 0:00:05]} 44. Rxc1+ {[%clk 0:00:01]}  Kxc1 {[%clk 0:00:06]} 45. Rf6 {[%clk 0:00:02]}  Raxa7 {[%clk 0:00:06]} 46. Rxh6 {[%clk 0:00:03]}  Ra2+ {[%clk 0:00:06]} 47. Kh3 {[%clk 0:00:03]}  Rbb2 {[%clk 0:00:07]} 48. Kg4 {[%clk 0:00:03]}  Rxh2 {[%clk 0:00:07]} 49. Rxh2 {[%clk 0:00:02]}  Rxh2 {[%clk 0:00:08]} 50. Kf5 {[%clk 0:00:02]}  Kd2 {[%clk 0:00:08]} 51. g4 {[%clk 0:00:02]}  Rf2+ {[%clk 0:00:07]} 52. Ke4 {[%clk 0:00:01]}  Rg2 {[%clk 0:00:05]} 53. Kf4 {[%clk 0:00:01]}  Kd3 {[%clk 0:00:05]} 54. g5 {[%clk 0:00:01]}  Kd4 {[%clk 0:00:05]} 55. Kf5 {[%clk 0:00:02]}  Kd5 {[%clk 0:00:06]} 56. Kf6 {[%clk 0:00:02]}  Kd6 {[%clk 0:00:06]} 57. g6 {[%clk 0:00:03]}  Rf2+ {[%clk 0:00:06]} 58. Kg7 {[%clk 0:00:03]}  Ke7 {[%clk 0:00:06]} 59. Kh8 {[%clk 0:00:03]}  Rg2 {[%clk 0:00:05]} 60. g7 {[%clk 0:00:03]}  Kf7 {[%clk 0:00:05]} 61. g8=Q+ {[%clk 0:00:01]}  Rxg8+ {[%clk 0:00:05]} 62. Kh7 {[%clk 0:00:01]}  Rg1 {[%clk 0:00:06]} 63. Kh6 {[%clk 0:00:02]}  Kf6 {[%clk 0:00:06]} 64. Kh5 {[%clk 0:00:03]}  Rg8 {[%clk 0:00:06]} 65. Kh4 {[%clk 0:00:04]}  Kf5 {[%clk 0:00:07]} 66. Kh3 {[%clk 0:00:05]}  Kf4 {[%clk 0:00:07]} 67. Kh2 {[%clk 0:00:05]}  Kf3 {[%clk 0:00:08]} 68. Kh3 {[%clk 0:00:06]}  Rh8# {[%clk 0:00:08]} 0-1


[Site "https://www.chess.com"]